fUSD/lending_fUSD_20250119
["ID","MTS","AMOUNT","RATE_DAILY","PERIOD"]
[349605959,1737324652221,-500.0,0.00021307,2]
[349605960,1737324652231,-1154.9,0.00021307,2]
[349605961,1737324652240,-500.0,0.00021307,2]
[349605962,1737324652250,-500.0,0.00021307,2]
[349605963,1737324652260,-500.0,0.00021307,2]
[349605964,1737324652270,-500.0,0.00021307,2]
[349605965,1737324652280,-500.0,0.00021307,2]
[349605966,1737324652290,-500.0,0.00021307,2]
[349605967,1737324652300,-500.0,0.00021307,2]
[349605968,1737324652310,-500.0,0.00021307,2]
[349605969,1737324652320,-771.79,0.00021307,2]
[349605970,1737324652330,-637.82,0.00021307,2]
[349605971,1737324652340,-500.0,0.00021307,2]
[349605972,1737324652349,-500.0,0.00021307,2]
[349605973,1737324652359,-668.04,0.00021307,2]
[349605974,1737324652368,-500.0,0.00021307,2]
[349605975,1737324652379,-500.0,0.00021307,2]
[349605976,1737324652389,-500.0,0.00021307,2]
[349605977,1737324652399,-594.06,0.00021307,2]
[349605978,1737324652409,-1439.73,0.00021307,2]
[349605979,1737324652418,-500.0,0.00021307,2]
[349605980,1737324652432,-659.17,0.00021307,2]
[349605981,1737324652442,-500.0,0.00021307,2]
[349605982,1737324652452,-238.27,0.00021307,2]
[349605983,1737324652461,-500.0,0.00021307,2]
[349605984,1737324652471,-500.0,0.00021307,2]
[349605985,1737324652482,-500.0,0.00021307,2]
[349605986,1737324652497,-500.0,0.00021307,2]
[349605987,1737324652508,-1000.0,0.00021307,2]
[349605988,1737324652518,-500.0,0.00021307,2]
[349605989,1737324652528,-500.0,0.00021307,2]
[349605990,1737324652539,-500.0,0.00021307,2]
[349605991,1737324652548,-154.77153879,0.00021318,2]
[349605992,1737324652558,-500.0,0.00021321,2]
[349605993,1737324652568,-4394.65792316,0.00021348,2]
[349605994,1737324652578,-563.9,0.00021367,2]
[349605995,1737324652587,-500.0,0.00021368,2]
[349605996,1737324652597,-500.0,0.00021368,2]
[349605997,1737324652606,-500.0,0.00021368,2]
[349605998,1737324652615,-500.0,0.00021368,2]
[349605999,1737324652624,-500.0,0.00021368,2]
[349606000,1737324652633,-151.0,0.00021415,2]
[349606001,1737324652643,-5531.6537126,0.00021415,2]
[349606002,1737324652782,-281.4965675,0.00021415,2]
[349606003,1737324652795,-830.00001,0.00021415,2]
[349606004,1737324652826,-500.0,0.00021033,2]
[349606005,1737324652838,-500.0,0.00021266,2]
[349606006,1737324652848,-500.0,0.00021307,2]
[349606007,1737324652857,-3624.73306874,0.00021415,2]
[349606008,1737324652867,-76660.2451,0.00021439,2]
[349606009,1737324652876,-151.0,0.00021439,2]
[349606010,1737324652885,-200.0,0.00021479,2]
[349606011,1737324652894,-4394.65792316,0.00021486,2]
[349606012,1737324652905,-500.0,0.00021502,2]
[349606013,1737324652915,-500.0,0.00021538,2]
[349606014,1737324652926,-588.15,0.00021538,2]
[349606015,1737324652935,-500.0,0.00021538,2]
[349606016,1737324652945,-575.34,0.00021538,2]
[349606017,1737324652955,-500.0,0.00021538,2]
[349606018,1737324652964,-1019.83,0.00021538,2]
[349606019,1737324652974,-500.0,0.00021538,2]
[349606020,1737324652984,-500.0,0.00021538,2]
[349606021,1737324652994,-680.48,0.00021538,2]
[349606022,1737324653004,-500.0,0.00021538,2]
[349606023,1737324653015,-500.0,0.00021538,2]
[349606024,1737324653025,-769.4,0.00021538,2]
[349606025,1737324653035,-500.0,0.00021538,2]
[349606026,1737324653045,-500.0,0.00021538,2]
[349606027,1737324653055,-500.0,0.00021538,2]
[349606028,1737324653065,-500.0,0.00021538,2]
[349606029,1737324653075,-500.0,0.00021538,2]
[349606030,1737324653085,-500.0,0.00021538,2]
[349606031,1737324653095,-500.0,0.00021538,2]
[349606032,1737324653104,-500.0,0.00021538,2]
[349606033,1737324653115,-500.0,0.00021538,2]
[349606034,1737324653124,-558.88,0.00021538,2]
[349606035,1737324653134,-500.0,0.00021538,2]
[349606036,1737324653144,-500.0,0.00021538,2]
[349606037,1737324653153,-581.31,0.00021539,2]
[349606038,1737324653163,-214.49,0.00021539,2]
[349606039,1737324653174,-608.22,0.00021539,2]
[349606040,1737324653184,-157.78,0.00021539,2]
[349606041,1737324653194,-549.86724577,0.00021539,2]
[349606042,1737324653204,-500.0,0.00021539,2]
[349606043,1737324653214,-500.0,0.00021539,2]
[349606044,1737324653223,-500.0,0.00021539,2]
[349606045,1737324653233,-668.74,0.00021539,2]
[349606046,1737324653242,-500.0,0.00021539,2]
[349606047,1737324653251,-500.0,0.00021539,2]
[349606048,1737324653261,-500.0,0.00021539,2]
[349606049,1737324653270,-290.36612,0.00021539,2]
[349606050,1737324653279,-500.0,0.00021539,2]
[349606051,1737324653289,-500.0,0.00021539,2]
[349606052,1737324653298,-764.51,0.00021539,2]
[349606053,1737324653307,-500.0,0.00021539,2]
[349606054,1737324653316,-643.83,0.00021539,2]
[349606055,1737324653325,-500.0,0.00021539,2]
[349606056,1737324653335,-232.063448,0.00021539,2]
[349606057,1737324653345,-500.0,0.00021539,2]
[349606058,1737324653354,-500.0,0.00021539,2]
[349606059,1737324653364,-808.42,0.00021539,2]
[349606060,1737324653374,-976.5,0.00021539,2]
[349606061,1737324653383,-1140.37,0.00021539,2]
[349606062,1737324653393,-500.0,0.00021539,2]
[349606063,1737324653403,-500.0,0.00021539,2]
[349606064,1737324653413,-500.0,0.00021539,2]
[349606065,1737324653426,-1105.7,0.00021539,2]
[349606066,1737324653435,-619.75,0.00021539,2]
[349606067,1737324653445,-310.86,0.00021539,2]
[349606068,1737324653455,-744.7,0.00021539,2]
[349606069,1737324653464,-500.0,0.00021539,2]
[349606070,1737324653474,-500.0,0.00021539,2]
[349606071,1737324653484,-563.08,0.00021539,2]
[349606072,1737324653493,-500.0,0.00021539,2]
[349606073,1737324653503,-500.0,0.0002154,2]
[349606074,1737324653512,-500.0,0.0002154,2]
[349606075,1737324653521,-386.37293043,0.0002154,2]
[349606076,1737324653530,-304.68,0.0002154,2]
[349606077,1737324653539,-398.03,0.0002154,2]
[349606078,1737324653549,-500.0,0.0002154,2]
[349606079,1737324653558,-500.0,0.0002154,2]
[349606080,1737324653568,-500.0,0.0002154,2]
[349606081,1737324653578,-500.0,0.0002154,2]
[349606082,1737324653587,-314.01381341,0.0002154,2]
[349606083,1737324653596,-500.0,0.0002154,2]
[349606084,1737324653605,-152.0,0.00021541,3]
[349606085,1737324653614,-715.0,0.00021541,2]
[349606086,1737324653623,-153.614307,0.0002155,14]
[349606087,1737324653632,-939.42,0.00021567,2]
[349606088,1737324653641,-10267.88335884,0.00021577,2]
[349606089,1737324653651,-358.9,0.00021581,2]
[349606090,1737324653660,-281.7,0.00021581,2]
[349606091,1737324653669,-500.0,0.00021581,2]
[349606092,1737324653681,-188.38,0.00021581,2]
[349606093,1737324653690,-199.95,0.00021581,2]
[349606094,1737324653699,-500.0,0.00021581,2]
[349606095,1737324653709,-359.48,0.00021581,2]
[349606096,1737324653718,-500.0,0.00021581,2]
[349606097,1737324653727,-272.87,0.00021581,2]
[349606098,1737324653737,-500.0,0.00021581,2]
[349606099,1737324653747,-500.0,0.00021581,2]
[349606100,1737324653758,-545.87,0.00021581,2]
[349606101,1737324653768,-500.0,0.00021581,2]
[349606102,1737324653777,-500.0,0.00021581,2]
[349606103,1737324653787,-500.0,0.00021581,2]
[349606104,1737324653799,-500.0,0.00021581,2]
[349606105,1737324653809,-500.0,0.00021581,2]
[349606106,1737324653818,-500.0,0.00021581,2]
[349606107,1737324653828,-500.0,0.00021581,2]
[349606108,1737324653840,-1154.9,0.00021581,2]
[349606109,1737324653851,-500.0,0.00021581,2]
[349606110,1737324653860,-500.0,0.00021581,2]
[349606111,1737324653870,-500.0,0.00021581,2]
[349606112,1737324653880,-500.0,0.00021581,2]
[349606113,1737324653889,-500.0,0.00021581,2]
[349606114,1737324653898,-500.0,0.00021581,2]
[349606115,1737324653908,-500.0,0.00021581,2]
[349606116,1737324653918,-539.7,0.00021581,2]
[349606117,1737324653930,-771.79,0.00021581,2]
[349606118,1737324653939,-637.82,0.00021581,2]
[349606119,1737324653949,-478.54885703,0.00021581,2]
[349606120,1737324653959,-500.0,0.00021581,2]
[349606121,1737324653968,-668.04,0.00021581,2]
[349606122,1737324653978,-500.0,0.00021581,2]
[349606123,1737324653987,-500.0,0.00021581,2]
[349606124,1737324653996,-244.79,0.00021581,2]
[349606125,1737324654005,-594.06,0.00021581,2]
[349606126,1737324654014,-1439.73,0.00021581,2]
[349606127,1737324654024,-590.53,0.00021581,2]
[349606128,1737324654034,-659.17,0.00021581,2]
[349606129,1737324654043,-500.0,0.00021581,2]
[349606130,1737324654052,-500.0,0.00021581,2]
[349606131,1737324654062,-500.0,0.00021581,2]
[349606132,1737324654071,-1008.82617247,0.00021581,2]
[349606133,1737324654081,-500.0,0.00021581,2]
[349606134,1737324654090,-154.77153879,0.00021609,2]
[349606135,1737324654100,-4394.65792316,0.00021624,2]
[349606136,1737324654109,-151.0,0.00021641,2]
[349606137,1737324654119,-151.0,0.00021641,2]
[349606138,1737324654128,-563.9,0.00021641,2]
[349606139,1737324654137,-500.0,0.00021642,2]
[349606140,1737324654146,-500.0,0.00021642,2]
[349606141,1737324654155,-500.0,0.00021642,2]
[349606142,1737324654165,-219.93,0.00021642,2]
[349606143,1737324654177,-500.0,0.00021642,2]
[349606144,1737324654185,-261.04,0.00021675,2]
[349606145,1737324654195,-967.0,0.00021684,2]
[349606146,1737324654204,-150.0,0.00021735,2]
[349606147,1737324654328,-10267.88335884,0.00021738,2]
[349606148,1737324654339,-4394.65792316,0.00021762,2]
[349606149,1737324654349,-2704.18340046,0.0002179,2]
[349606150,1737324654358,-467.88,0.00021791,2]
[349606151,1737324654368,-151.57933324,0.00021799,2]
[349606152,1737324654377,-39299.68720821,0.00021799,2]
[349606153,1737324654391,-51525.0,0.00021799,2]
[349606154,1737324654402,-50300.0,0.00021799,2]
[349606155,1737324654463,-4124.72106867,0.00021799,2]
[349606156,1737324654474,-34006.24599741,0.00021799,2]
[349606157,1737324654486,-31737.65069567,0.00021799,2]
[349606158,1737324654497,-49634.46637579,0.00021799,2]
[349606159,1737324654516,-500.0,0.0002154,2]
[349606160,1737324654526,-500.0,0.00021581,2]
[349606161,1737324654535,-93.62076937,0.00021799,2]
[349606162,1737324654547,-125625.22999699,0.00021799,2]
[349606163,1737324654558,-1040.5,0.00021799,2]
[349606164,1737324654569,-1993.64165001,0.00021799,2]
[349606165,1737324654580,-582.27999921,0.00021799,2]
[349606166,1737324654591,-633.004498,0.00021799,2]
[349606167,1737324654603,-81778.27890118,0.00021799,2]
[349606168,1737324654612,-425601.65623637,0.000218,2]
[349606169,1737324654623,-14976.24411139,0.000218,2]
[349606170,1737324654634,-51520.59999998,0.000218,2]
[349606171,1737324654645,-285.02910722,0.000218,2]
[349606172,1737324654656,-1008.395,0.000218,2]
[349606173,1737324654672,-328.5089,0.000218,2]
[349606174,1737324654683,-2071.35,0.000218,2]
[349606175,1737324654694,-7270.766872,0.000218,2]
[349606176,1737324654706,-256.5000045,0.000218,2]
[349606177,1737324654717,-329.96,0.000218,2]
[349606178,1737324654728,-500.795,0.000218,2]
[349606179,1737324654739,-414.59421506,0.000218,2]
[349606180,1737324654802,-801.0089986,0.000218,2]
[349606181,1737324654815,-610.22697178,0.000218,2]
[349606182,1737324654872,-540.68,0.00020759,2]
[349606183,1737324654882,-500.0,0.00021307,2]
[349606184,1737324654891,-650.54919636,0.000218,2]
[349606185,1737324654907,-125504.24339206,0.000218,2]
[349606186,1737324654919,-1103.2540492,0.000218,2]
[349606187,1737324654933,-1081.91321497,0.000218,2]
[349606188,1737324654944,-1546.59038136,0.000218,2]
[349606189,1737324654954,-151.0,0.000218,2]
[349606190,1737324654964,-151.0,0.000218,2]
[349606191,1737324654973,-151.0,0.000218,2]
[349606192,1737324654983,-151.0,0.000218,2]
[349606193,1737324654992,-255.373433,0.000218,2]
[349606194,1737324655002,-500.0,0.00021812,2]
[349606195,1737324655011,-588.15,0.00021812,2]
[349606196,1737324655021,-500.0,0.00021812,2]
[349606197,1737324655030,-575.34,0.00021812,2]
[349606198,1737324655039,-500.0,0.00021812,2]
[349606199,1737324655049,-1019.83,0.00021812,2]
[349606200,1737324655059,-500.0,0.00021812,2]
[349606201,1737324655068,-680.48,0.00021812,2]
[349606202,1737324655078,-500.0,0.00021812,2]
[349606203,1737324655088,-500.0,0.00021812,2]
[349606204,1737324655098,-769.4,0.00021812,2]
[349606205,1737324655107,-533.20468333,0.00021812,2]
[349606206,1737324655116,-500.0,0.00021812,2]
[349606207,1737324655126,-500.0,0.00021812,2]
[349606208,1737324655135,-500.0,0.00021812,2]
[349606209,1737324655146,-632.18,0.00021812,2]
[349606210,1737324655156,-500.0,0.00021812,2]
[349606211,1737324655166,-500.0,0.00021812,2]
[349606212,1737324655177,-500.0,0.00021812,2]
[349606213,1737324655187,-524.84,0.00021812,2]
[349606214,1737324655197,-558.88,0.00021812,2]
[349606215,1737324655207,-300.68010071,0.00021812,2]
[349606216,1737324655219,-199.31989929,0.00021812,2]
[349606217,1737324655229,-390.65096873,0.00021812,2]
[349606218,1737324655241,-109.34903127,0.00021812,2]
[349606219,1737324655252,-500.0,0.00021813,2]
[349606220,1737324655263,-182.96957841,0.00021813,2]
[349606221,1737324655276,-317.03042159,0.00021813,2]
[349606222,1737324655287,-165.67920429,0.00021813,2]
[349606223,1737324655300,-344.1324579,0.00021813,2]
[349606224,1737324655313,-158.92833781,0.00021813,2]
[349606225,1737324655323,-604.57325244,0.00021813,2]
[349606226,1737324655333,-279.17059535,0.00021813,2]
[349606227,1737324655346,-220.82940465,0.00021813,2]
[349606228,1737324655357,-500.0,0.00021813,2]
[349606229,1737324655367,-0.76164961,0.00021813,2]
[349606230,1737324655379,-289.60447039,0.00021813,2]
[349606231,1737324655389,-500.0,0.00021813,2]
[349606232,1737324655399,-500.0,0.00021813,2]
[349606233,1737324655408,-764.51,0.00021813,2]
[349606234,1737324655418,-500.0,0.00021813,2]
[349606235,1737324655435,-643.83,0.00021813,2]
[349606236,1737324655445,-436.96,0.00021813,2]
[349606237,1737324655455,-495.49552961,0.00021813,2]
[349606238,1737324655466,-4.50447039,0.00021813,2]
[349606239,1737324655476,-500.0,0.00021813,2]
[349606240,1737324655485,-808.42,0.00021813,2]
[349606241,1737324655495,-306.59474842,0.00021813,2]
[349606242,1737324655514,-669.90525158,0.00021813,2]
[349606243,1737324655524,-1140.37,0.00021813,2]
[349606244,1737324655533,-500.0,0.00021813,2]
[349606245,1737324655543,-500.0,0.00021813,2]
[349606246,1737324655553,-500.0,0.00021813,2]
[349606247,1737324655563,-1105.7,0.00021813,2]
[349606248,1737324655572,-619.75,0.00021813,2]
[349606249,1737324655582,-744.7,0.00021813,2]
[349606250,1737324655592,-500.0,0.00021813,2]
[349606251,1737324655601,-500.0,0.00021813,2]
[349606252,1737324655611,-500.0,0.00021813,2]
[349606253,1737324655619,-500.0,0.00021814,2]
[349606254,1737324655629,-500.0,0.00021814,2]
[349606255,1737324655638,-500.0,0.00021814,2]
[349606256,1737324655647,-265.47,0.00021814,2]
[349606257,1737324655656,-500.0,0.00021814,2]
[349606258,1737324655666,-500.0,0.00021814,2]
[349606259,1737324655678,-500.0,0.00021814,2]
[349606260,1737324655687,-500.0,0.00021814,2]
[349606261,1737324655696,-500.0,0.00021823,2]
[349606262,1737324655705,-500.0,0.00021855,2]
[349606263,1737324655714,-500.0,0.00021855,2]
[349606264,1737324655723,-500.0,0.00021855,2]
[349606265,1737324655733,-545.87,0.00021855,2]
[349606266,1737324655742,-500.0,0.00021855,2]
[349606267,1737324655752,-500.0,0.00021855,2]
[349606268,1737324655766,-500.0,0.00021855,2]
[349606269,1737324655775,-500.0,0.00021855,2]
[349606270,1737324655785,-500.0,0.00021855,2]
[349606271,1737324655795,-500.0,0.00021855,2]
[349606272,1737324655805,-1154.9,0.00021855,2]
[349606273,1737324655817,-500.0,0.00021855,2]
[349606274,1737324655827,-500.0,0.00021855,2]
[349606275,1737324655838,-500.0,0.00021855,2]
[349606276,1737324655848,-500.0,0.00021855,2]
[349606277,1737324655857,-500.0,0.00021855,2]
[349606278,1737324655867,-500.0,0.00021855,2]
[349606279,1737324655876,-500.0,0.00021855,2]
[349606280,1737324655885,-771.79,0.00021855,2]
[349606281,1737324655894,-637.82,0.00021855,2]
[349606282,1737324655904,-500.0,0.00021855,2]
[349606283,1737324655913,-668.04,0.00021855,2]
[349606284,1737324655924,-500.0,0.00021855,2]
[349606285,1737324655934,-500.0,0.00021855,2]
[349606286,1737324655943,-594.06,0.00021855,2]
[349606287,1737324655953,-1439.73,0.00021855,2]
[349606288,1737324655963,-659.17,0.00021855,2]
[349606289,1737324655972,-500.0,0.00021855,2]
[349606290,1737324655982,-500.0,0.00021855,2]
[349606291,1737324655991,-500.0,0.00021855,2]
[349606292,1737324656001,-500.0,0.00021855,2]
[349606293,1737324656011,-150.0,0.00021888,2]
[349606294,1737324656021,-1902.3403,0.0002189,2]
[349606295,1737324656030,-1000.0,0.0002189,2]
[349606296,1737324656039,-1000.0,0.0002189,2]
[349606297,1737324656049,-1000.0,0.0002189,2]
[349606298,1737324656059,-1000.0,0.0002189,2]
[349606299,1737324656068,-1000.0,0.0002189,2]
[349606300,1737324656078,-1000.0,0.0002189,2]
[349606301,1737324656087,-1000.0,0.0002189,2]
[349606302,1737324656098,-1000.0,0.0002189,2]
[349606303,1737324656108,-1000.0,0.0002189,2]
[349606304,1737324656117,-431.4842,0.0002189,2]
[349606305,1737324656127,-3696.67113392,0.00021899,2]
[349606306,1737324656137,-1333.763985,0.000219,2]
[349606307,1737324656147,-406.27850929,0.000219,2]
[349606308,1737324656160,-1543.39582825,0.000219,2]
[349606309,1737324656170,-284.77260722,0.000219,2]
[349606310,1737324656187,-332.66793399,0.000219,2]
[349606311,1737324656197,-4394.65792316,0.000219,2]
[349606312,1737324656207,-10267.88335884,0.000219,2]
[349606313,1737324656217,-154.77153879,0.000219,2]
[349606314,1737324656227,-541.65080974,0.000219,2]
[349606315,1737324656352,-500.0,0.00020717,2]
[349606316,1737324656362,-500.0,0.00020991,2]
[349606317,1737324656372,-151.0,0.00021265,2]
[349606318,1737324656381,-133.53999802,0.00021265,2]
[349606319,1737324656414,-500.0,0.00020716,2]
[349606320,1737324656426,-366.46000198,0.00021265,2]
[349606321,1737324656436,-452.03,0.00021539,2]
[349606322,1737324656445,-500.0,0.00021581,2]
[349606323,1737324656455,-500.0,0.00021855,2]
[349606324,1737324656464,-130.20214873,0.000219,2]
[349606325,1737324656474,-172.04835509,0.000219,2]
[349606326,1737324656483,-466.2594942,0.000219,2]
[349606327,1737324656503,-483.05670048,0.000219,2]
[349606328,1737324656512,-287.73329952,0.000219,2]
[349606329,1737324656523,-60.46768204,0.000219,2]
[349606330,1737324656533,-252.41448973,0.000219,2]
[349606331,1737324656543,-556.38347754,0.000219,2]
[349606332,1737324656553,-166.03225019,0.000219,2]
[349606333,1737324656674,-423.10372019,0.0002099,2]
[349606334,1737324656687,-76.89627981,0.0002099,2]
[349606335,1737324656696,-438.5655274,0.000219,2]
[349606336,1737324656707,-1624.12249999,0.000219,2]
[349606337,1737324656720,-1608.9,0.000219,2]
[349606338,1737324656874,-15241.4894,0.00020446,2]
[349606339,1737324656884,-500.0,0.00020716,2]
[349606340,1737324656894,-557.14878198,0.00020716,2]
[349606341,1737324656903,-500.0,0.00020718,2]
[349606342,1737324656913,-500.0,0.00021264,2]
[349606343,1737324656924,-810.11493788,0.00021351,2]
[349606344,1737324656935,-500.0,0.00021538,2]
[349606345,1737324656944,-500.0,0.00021812,2]
[349606346,1737324656954,-136.75388816,0.000219,2]
[349606347,1737324656963,-1000.0,0.00021905,2]
[349606348,1737324656973,-563.9,0.00021915,2]
[349606349,1737324656982,-500.0,0.00021916,2]
[349606350,1737324656991,-500.0,0.00021916,2]
[349606351,1737324657002,-500.0,0.00021916,2]
[349606352,1737324657012,-500.0,0.00021916,2]
[349606353,1737324657022,-596.06,0.00021917,2]
[349606354,1737324657035,-596.06,0.00021917,2]
[349606355,1737324657044,-596.06,0.00021917,2]
[349606356,1737324657054,-596.06,0.00021917,2]
[349606357,1737324657063,-568.85299198,0.00021917,2]
[349606358,1737324657075,-27.20700802,0.00021917,2]
[349606359,1737324657084,-1000.0,0.00021917,3]
[349606360,1737324657092,-1000.0,0.00021917,3]
[349606361,1737324657101,-275.46,0.00021917,3]
[349606362,1737324657111,-4000.0,0.00021918,2]
[349606363,1737324657120,-150.0,0.00021918,2]
[349606364,1737324657129,-182.06,0.00021934,2]
[349606365,1737324657138,-2047.41,0.00021947,30]
[349606366,1737324657148,-150.0,0.00021958,2]
[349606367,1737324657157,-661.61774357,0.00021999,10]
[349606368,1737324657167,-259.8803,0.00021999,2]
[349606369,1737324657179,-62570.93809392,0.00021999,2]
[349606370,1737324657188,-1000.0,0.00021999,2]
[349606371,1737324657198,-2536.0715763,0.00021999,2]
[349606372,1737324657207,-261.9852296,0.00021999,2]
[349606373,1737324657217,-784.1028354,0.00021999,2]
[349606374,1737324657227,-2587.73695983,0.00022,2]
[349606375,1737324657236,-23672.16704529,0.00022,2]
[349606376,1737324657251,-17910.0000002,0.00022,2]
[349606377,1737324657263,-449.90755354,0.00022,2]
[349606378,1737324657273,-10306.0,0.00022,2]
[349606379,1737324657284,-1141.43298784,0.00022,2]
[349606380,1737324657295,-11849.60150327,0.00022,2]
[349606381,1737324657306,-2955.97775524,0.00022,2]
[349606382,1737324657323,-591.94239936,0.00022,2]
[349606383,1737324657334,-5118.39850005,0.00022,2]
[349606384,1737324657344,-2582.25306102,0.00022,2]
[349606385,1737324657354,-1615.0,0.00022,2]
[349606386,1737324657617,-500.0,0.00020716,2]
[349606387,1737324657626,-500.0,0.00020716,2]
[349606388,1737324657635,-185.06203,0.00020716,2]
[349606389,1737324657644,-500.0,0.00020716,2]
[349606390,1737324657653,-500.0,0.00020716,2]
[349606391,1737324657662,-500.0,0.00020717,2]
[349606392,1737324657675,-500.0,0.00020718,2]
[349606393,1737324657684,-500.0,0.00020759,2]
[349606394,1737324657693,-500.0,0.0002099,2]
[349606395,1737324657702,-500.0,0.0002099,2]
[349606396,1737324657711,-627.87931672,0.00020991,2]
[349606397,1737324657720,-444.15735437,0.00020992,2]
[349606398,1737324657731,-55.84264563,0.00020992,2]
[349606399,1737324657740,-511.07458146,0.00021033,2]
[349606400,1737324657749,-500.0,0.00021264,2]
[349606401,1737324657759,-266.47,0.00021264,2]
[349606402,1737324657771,-500.0,0.00021266,2]
[349606403,1737324657780,-500.0,0.00021538,2]
[349606404,1737324657789,-185.06203,0.00021812,2]
[349606405,1737324657799,-500.0,0.00021812,2]
[349606406,1737324657809,-681.30224368,0.000219,3]
[349606407,1737324657818,-4425.78396134,0.00022,2]
[349606408,1737324657828,-481.8599968,0.00022,2]
[349606409,1737324657844,-810.11493788,0.00021442,2]
[349606410,1737324657854,-6063.30754862,0.00022,2]
[349606411,1737324657866,-1403.49900218,0.00022,2]
[349606412,1737324657877,-1130.16096578,0.00022,2]
[349606413,1737324657888,-14468.85822461,0.00022,2]
[349606414,1737324657921,-1300.00000003,0.00022,2]
[349606415,1737324657940,-2360.53322836,0.00022,2]
[349606416,1737324657952,-13224.22327818,0.00022,2]
[349606417,1737324658019,-3461.07675799,0.00022,2]
[349606418,1737324658030,-7627.62000027,0.00022,2]
[349606420,1737325227545,216.4,0.00010137,2]
[349606421,1737325301607,1850.58,0.00019228,30]
[349606422,1737325331886,1579.73998749,0.0002,30]
[349606423,1737325508462,495450.62,0.00012,2]
[349606424,1737325508488,259997.69399396,0.00012,2]
[349606425,1737325534148,-550.0,0.00015,2]
[349606426,1737325534170,-2442.55396988,0.00016512,2]
[349606427,1737325534193,-888.17920304,0.00016612,2]
[349606428,1737325534216,-159.9756587,0.000167,2]
[349606429,1737325534239,-167.07,0.00016712,2]
[349606430,1737325534262,-9356.62445806,0.00016712,2]
[349606431,1737325534288,-1050.88704191,0.000168,2]
[349606432,1737325534312,-300.0,0.00016812,2]
[349606433,1737325534335,-216.4,0.00016813,2]
[349606434,1737325534358,-600.0,0.00017,2]
[349606435,1737325534380,-5523.0,0.000171,5]
[349606436,1737325534402,-652.46073335,0.00017835,2]
[349606437,1737325534423,-1874.0,0.00018,2]
[349606438,1737325534446,-6835.82,0.00018687,2]
[349606439,1737325534468,-250.0,0.00018687,2]
[349606440,1737325534491,-1438.481,0.00018696,2]
[349606441,1737325534514,-1347.68,0.00018717,2]
[349606442,1737325534541,-1384.23,0.0001874,2]
[349606443,1737325534563,-1714.32,0.00018826,2]
[349606444,1737325534586,-250.0,0.00018896,2]
[349606445,1737325534609,-554.67015029,0.000189,2]
[349606446,1737325534632,-11571.96296625,0.0001896,2]
[349606448,1737325557910,-12328.03703375,0.0001896,2]
[349606449,1737325557930,-650.0,0.00019,2]
[349606450,1737325557950,-203.68,0.00019009,2]
[349606451,1737325557971,-324.15,0.00019009,2]
[349606452,1737325557992,-5440.74,0.00019171,2]
[349606453,1737325558013,-498.83451684,0.00019173,2]
[349606454,1737325558035,-52066.825922,0.00019178,7]
[349606455,1737325558060,-171.44,0.00019313,2]
[349606456,1737325558082,-1000.0,0.00019326,2]
[349606457,1737325558103,-1982.55412588,0.00019469,2]
[349606458,1737325558126,-260.53,0.00019505,2]
[349606459,1737325558148,-1000.0,0.00019665,2]
[349606460,1737325558172,-200.39040063,0.000199,2]